[Event "DLM Youth 2024"]
[Site "Tuebingen"]
[Date "2024.10.03"]
[Round "2"]
[White "Stiehler, Mara"]
[Black "Fischermann, Charlotte"]
[Result "1/2-1/2"]
[ECO "C54"]
[WhiteElo "1601"]
[BlackElo "1657"]
[Annotator "NA RC"]
[PlyCount "106"]
[EventDate "2024.10.03"]
[EventType "team-swiss"]
[EventRounds "7"]
[EventCountry "GER"]
[SourceTitle "playchess.com"]
[Source "ChessBase"]
[SourceQuality "1"]
[TimeControl "40/5400+30:1800+30"]

1. e4 {[%emt 0:00:04]} e5 {[%emt 0:00:00]} 2. Nf3 {[%emt 0:00:04]} Nc6 {[%emt 0:00:00]} 3. Bc4 {[%emt 0:00:04]} Nf6 {[%emt 0:00:11]} 4. d3 {[%emt 0:00:06]} Bc5 {[%emt 0:00:13]} 5. c3 {[%emt 0:00:04]} d6 {[%emt 0:00:18]} 6. Bb3 {[%emt 0:00:07]} Bb6 {[%emt 0:00:58]} 7. Nbd2 {[%emt 0:00:13]} Na5 {[%emt 0:02:28]} 8. Bc2 {[%emt 0:00:10]} Bd7 {[%emt 0:03:49]} 9. h3 {[%emt 0:00:30]} h6 {[%emt 0:04:28]} 10. Qe2 {[%emt 0:00:25]} Qe7 {[%emt 0:05:04]} 11. Nf1 {[%emt 0:00:35]} Nc6 {[%emt 0:05:48]} 12. Ne3 {[%emt 0:01:27]} g6 {[%emt 0:02:38]} 13. g4 {[%emt 0:06:48]} Nd8 {[%emt 0:01:33]} 14. Nd5 {[%emt 0:01:04]} Nxd5 {[%emt 0:02:16]} 15. exd5 {[%emt 0:00:09]} c6 {[%emt 0:01:14]} 16. c4 {[%emt 0:03:00]} Ba5+ {[%emt 0:05:14]} 17. Bd2 {[%emt 0:02:34]} Bxd2+ {[%emt 0:00:33]} 18. Nxd2 {[%emt 0:00:17]} cxd5 {[%emt 0:01:56]} 19. cxd5 {[%emt 0:00:13]} b6 {[%emt 0:01:13]} 20. d4 {[%emt 0:05:29]} Nb7 {[%emt 0:02:57]} 21. dxe5 {[%emt 0:04:16]} dxe5 {[%emt 0:01:44]} 22. Nc4 {[%emt 0:00:49]} Rc8 {[%emt 0:02:19]} 23. Bd3 {[%emt 0:01:27]} h5 {[%emt 0:04:37]} 24. Qxe5 {[%emt 0:03:33]} Qxe5+ {[%emt 0:00:50]} 25. Nxe5 {[%emt 0:00:09]} hxg4 {[%emt 0:00:34]} 26. Nxd7 {[%emt 0:00:36]} Kxd7 {[%emt 0:00:14]} 27. h4 {[%emt 0:00:55]} Nd6 {[%emt 0:01:02]} 28. b4 {[%emt 0:04:29]} Rce8+ {[%emt 0:00:35]} 29. Kd2 {[%emt 0:00:42]} Re5 {[%emt 0:01:12]} 30. Rag1 {[%emt 0:02:10]} Rxd5 {[%emt 0:02:44]} 31. Rxg4 {[%emt 0:00:40]} Rhh5 {[%emt 0:02:53]} 32. Re1 {[%emt 0:05:33]} Rhe5 {[%emt 0:01:05]} 33. Rxe5 {[%emt 0:02:23]} Rxe5 {[%emt 0:00:05]} 34. Rg5 {[%emt 0:00:49]} Ne4+ {[%emt 0:01:10]} 35. Bxe4 {[%emt 0:00:52]} Rxe4 {[%emt 0:00:08]} 36. h5 {[%emt 0:02:01]} gxh5 {[%emt 0:00:10]} 37. a3 {[%emt 0:01:13]} Rh4 {[%emt 0:01:34]} 38. Rg3 {[%emt 0:01:34]} Rg4 {[%emt 0:01:34]} 39. Rh3 {[%emt 0:00:39]} Rg5 {[%emt 0:00:58]} 40. Ke3 {[%emt 0:01:42]} Ke6 {[%emt 0:01:51]} 41. a4 {[%emt 0:31:01]} Kf6 {[%emt 0:33:18]} 42. f3 {[%emt 0:05:59]} Kg6 {[%emt 0:01:49]} 43. Rh4 {[%emt 0:01:18]} Rf5 {[%emt 0:01:37]} 44. Rd4 {[%emt 0:01:56]} Re5+ {[%emt 0:01:05]} 45. Kf4 {[%emt 0:00:47]} Re7 {[%emt 0:00:28]} 46. Rd6+ {[%emt 0:00:30]} f6 {[%emt 0:00:11]} 47. Rd1 {[%emt 0:01:26]} Rh7 {[%emt 0:00:38]} 48. Rg1+ {[%emt 0:00:46]} Kf7 {[%emt 0:02:10]} 49. Kf5 {[%emt 0:00:19]} Rh6 {[%emt 0:00:35]} 50. Rc1 {[%emt 0:00:31]} Ke7 {[%emt 0:02:23]} 51. Rh1 {[%emt 0:03:38]} Kd6 {[%emt 0:11:17]} 52. Rh4 {[%emt 0:00:17]} Kd5 {[%emt 0:01:02]} 53. b5 {[%emt 0:01:11]} Kd6 {[%emt 0:00:37]} 1/2-1/2

[Event "DLM Youth 2024"]
[Site "Tuebingen"]
[Date "2024.10.03"]
[Round "2"]
[White "Krannich, Eva"]
[Black "Albrecht, Sidney Jenna"]
[Result "1-0"]
[ECO "A05"]
[WhiteElo "1582"]
[BlackElo "1544"]
[Annotator "NA RC"]
[PlyCount "27"]
[EventDate "2024.10.03"]
[EventType "team-swiss"]
[EventRounds "7"]
[EventCountry "GER"]
[SourceTitle "playchess.com"]
[Source "ChessBase"]
[SourceQuality "1"]
[TimeControl "40/5400+30:1800+30"]

1. e4 {[%emt 0:00:01]} c5 {[%emt 0:00:07]} 2. Nf3 {[%emt 0:00:06]} Nc6 {[%emt 0:00:07]} 3. d3 {[%emt 0:00:19]} g6 {[%emt 0:00:15]} 4. g3 {[%emt 0:00:13]} Bg7 {[%emt 0:00:24]} 5. Bg2 {[%emt 0:00:12]} Nf6 {[%emt 0:00:29]} 6. O-O {[%emt 0:00:22]} O-O {[%emt 0:00:21]} 7. Nc3 {[%emt 0:00:24]} Re8 {[%emt 0:01:01]} 8. h3 {[%emt 0:00:22]} e6 {[%emt 0:00:47]} 9. Re1 {[%emt 0:01:02]} d5 {[%emt 0:00:51]} 10. e5 {[%emt 0:00:24]} Nd7 {[%emt 0:00:46]} 11. Bf4 {[%emt 0:00:59]} b6 {[%emt 0:01:39]} 12. Qd2 {[%emt 0:03:47]} a6 {[%emt 0:03:15]} 13. Nd1 {[%emt 0:01:54]} Qc7 {[%emt 0:02:53]} 14. Qe3 {[%emt 0:01:21]} 1-0

[Event "DLM Youth 2024"]
[Site "Tuebingen"]
[Date "2024.10.03"]
[Round "2"]
[White "Lu, Sheng"]
[Black "Mersmann, Jasmin"]
[Result "1/2-1/2"]
[ECO "C55"]
[WhiteElo "1559"]
[BlackElo "1607"]
[Annotator "NA RC"]
[PlyCount "120"]
[EventDate "2024.10.03"]
[EventType "team-swiss"]
[EventRounds "7"]
[EventCountry "GER"]
[SourceTitle "playchess.com"]
[Source "ChessBase"]
[SourceQuality "1"]
[TimeControl "40/5400+30:1800+30"]

1. e4 {[%emt 0:00:03]} e5 {[%emt 0:00:08]} 2. Nf3 {[%emt 0:00:04]} Nc6 {[%emt 0:00:12]} 3. Bc4 {[%emt 0:00:07]} Be7 {[%emt 0:00:33]} 4. Nc3 {[%emt 0:00:12]} Nf6 {[%emt 0:00:30]} 5. d3 {[%emt 0:00:39]} d6 {[%emt 0:00:12]} 6. h3 {[%emt 0:00:24]} Be6 {[%emt 0:00:17]} 7. Bb3 {[%emt 0:00:15]} O-O {[%emt 0:01:07]} 8. O-O {[%emt 0:00:30]} Nd7 {[%emt 0:00:23]} 9. d4 {[%emt 0:01:18]} Bxb3 {[%emt 0:01:02]} 10. axb3 {[%emt 0:00:09]} exd4 {[%emt 0:01:16]} 11. Nxd4 {[%emt 0:00:21]} Nxd4 {[%emt 0:00:43]} 12. Qxd4 {[%emt 0:00:15]} Nc5 {[%emt 0:02:05]} 13. Na4 {[%emt 0:02:03]} Ne6 {[%emt 0:01:36]} 14. Qe3 {[%emt 0:01:41]} Bf6 {[%emt 0:01:39]} 15. Bd2 {[%emt 0:03:08]} Re8 {[%emt 0:03:30]} 16. Bc3 {[%emt 0:03:21]} Ng5 {[%emt 0:02:18]} 17. Bxf6 {[%emt 0:01:25]} Qxf6 {[%emt 0:00:19]} 18. Nc3 {[%emt 0:01:07]} Qg6 {[%emt 0:02:02]} 19. Kh1 {[%emt 0:10:29]} Nxe4 {[%emt 0:07:07]} 20. Rxa7 {[%emt 0:01:52]} Rab8 {[%emt 0:00:57]} 21. Nxe4 {[%emt 0:01:52]} Qxe4 {[%emt 0:00:30]} 22. Qxe4 {[%emt 0:01:09]} Rxe4 {[%emt 0:00:38]} 23. Rfa1 {[%emt 0:02:04]} Ree8 {[%emt 0:02:40]} 24. R1a4 {[%emt 0:01:57]} c6 {[%emt 0:02:20]} 25. Rb4 {[%emt 0:02:32]} Re7 {[%emt 0:00:28]} 26. Rb6 {[%emt 0:01:00]} Kf8 {[%emt 0:01:05]} 27. b4 {[%emt 0:01:30]} Re2 {[%emt 0:07:13]} 28. Raxb7 {[%emt 0:01:12]} Rxb7 {[%emt 0:00:39]} 29. Rxb7 {[%emt 0:00:12]} Rxf2 {[%emt 0:07:51]} 30. c4 {[%emt 0:04:22]} Rxb2 {[%emt 0:01:19]} 31. Rb6 {[%emt 0:01:18]} Ke7 {[%emt 0:01:44]} 32. Rxc6 {[%emt 0:01:40]} Rxb4 {[%emt 0:00:18]} 33. c5 {[%emt 0:00:32]} dxc5 {[%emt 0:01:16]} 34. Rxc5 {[%emt 0:00:02]} Kf6 {[%emt 0:00:32]} 35. Kh2 {[%emt 0:00:44]} Rf4 {[%emt 0:01:43]} 36. g4 {[%emt 0:00:37]} Rf3 {[%emt 0:01:57]} 37. Kg2 {[%emt 0:00:39]} Re3 {[%emt 0:01:06]} 38. Rf5+ {[%emt 0:02:08]} Ke6 {[%emt 0:01:36]} 39. Kh2 {[%emt 0:01:08]} g6 {[%emt 0:03:05]} 40. Rf4 {[%emt 0:00:54]} h5 {[%emt 0:04:45]} 41. gxh5 {[%emt 0:32:35]} gxh5 {[%emt 0:31:25]} 42. Kg2 {[%emt 0:00:54]} Re5 {[%emt 0:00:56]} 43. Kg3 {[%emt 0:04:51]} Rf5 {[%emt 0:02:07]} 44. Ra4 {[%emt 0:01:28]} Kf6 {[%emt 0:02:05]} 45. Kh4 {[%emt 0:02:53]} Kg6 {[%emt 0:01:27]} 46. Ra6+ {[%emt 0:01:15]} f6 {[%emt 0:01:44]} 47. Ra8 {[%emt 0:03:20]} Rf4+ {[%emt 0:02:37]} 48. Kg3 {[%emt 0:00:17]} Re4 {[%emt 0:01:19]} 49. Ra3 {[%emt 0:02:38]} Kg5 {[%emt 0:01:12]} 50. h4+ {[%emt 0:01:48]} Kf5 {[%emt 0:02:56]} 51. Ra5+ {[%emt 0:01:55]} Kg6 {[%emt 0:01:45]} 52. Ra3 {[%emt 0:00:53]} Rg4+ {[%emt 0:00:35]} 53. Kh3 {[%emt 0:00:16]} Re4 {[%emt 0:01:07]} 54. Kg3 {[%emt 0:00:23]} Kf5 {[%emt 0:00:50]} 55. Ra5+ {[%emt 0:00:49]} Re5 {[%emt 0:00:31]} 56. Ra3 {[%emt 0:01:01]} Re1 {[%emt 0:01:08]} 57. Ra5+ {[%emt 0:00:57]} Re5 {[%emt 0:01:08]} 58. Ra3 {[%emt 0:00:28]} Rd5 {[%emt 0:00:24]} 59. Rb3 {[%emt 0:01:33]} Ke4 {[%emt 0:00:20]} 60. Rb4+ {[%emt 0:01:58]} Kf5 {[%emt 0:03:11]} 1/2-1/2

[Event "DLM Youth 2024"]
[Site "Tuebingen"]
[Date "2024.10.03"]
[Round "2"]
[White "Baklan, Kira"]
[Black "Margaryan, Mane"]
[Result "1/2-1/2"]
[ECO "B06"]
[WhiteElo "1550"]
[BlackElo "1493"]
[Annotator "NA RC"]
[PlyCount "122"]
[EventDate "2024.10.03"]
[EventType "team-swiss"]
[EventRounds "7"]
[EventCountry "GER"]
[SourceTitle "playchess.com"]
[Source "ChessBase"]
[SourceQuality "1"]
[TimeControl "40/5400+30:1800+30"]

1. e4 {[%emt 0:00:02]} c6 {[%emt 0:00:03]} 2. Nf3 {[%emt 0:00:14]} g6 {[%emt 0:00:06]} 3. d4 {[%emt 0:00:37]} Bg7 {[%emt 0:00:05]} 4. Bd3 {[%emt 0:00:19]} d5 {[%emt 0:00:41]} 5. h3 {[%emt 0:03:48]} Nh6 {[%emt 0:01:25]} 6. Be3 {[%emt 0:02:33]} f6 {[%emt 0:01:05]} 7. Na3 {[%emt 0:06:00]} Nf7 {[%emt 0:03:25]} 8. c3 {[%emt 0:01:43]} O-O {[%emt 0:00:58]} 9. O-O {[%emt 0:00:07]} e5 {[%emt 0:01:16]} 10. dxe5 {[%emt 0:08:56]} fxe5 {[%emt 0:00:53]} 11. Qd2 {[%emt 0:02:04]} Re8 {[%emt 0:06:37]} 12. Rad1 {[%emt 0:02:01]} b6 {[%emt 0:08:51]} 13. Bc2 {[%emt 0:03:14]} Bb7 {[%emt 0:03:34]} 14. Bb3 {[%emt 0:04:10]} Nd7 {[%emt 0:08:53]} 15. exd5 {[%emt 0:00:25]} cxd5 {[%emt 0:01:20]} 16. Bxd5 {[%emt 0:00:21]} Bxd5 {[%emt 0:00:40]} 17. Qxd5 {[%emt 0:00:04]} Nf6 {[%emt 0:03:07]} 18. Qxd8 {[%emt 0:01:52]} Raxd8 {[%emt 0:00:27]} 19. Rxd8 {[%emt 0:00:47]} Rxd8 {[%emt 0:00:35]} 20. Re1 {[%emt 0:02:01]} Nd5 {[%emt 0:03:08]} 21. Bc1 {[%emt 0:02:03]} a6 {[%emt 0:12:20]} 22. Nc4 {[%emt 0:01:37]} Re8 {[%emt 0:02:06]} 23. Ng5 {[%emt 0:03:39]} b5 {[%emt 0:06:44]} 24. Nxf7 {[%emt 0:01:28]} bxc4 {[%emt 0:01:23]} 25. Nd6 {[%emt 0:00:15]} Re6 {[%emt 0:01:40]} 26. Nxc4 {[%emt 0:00:13]} Nb6 {[%emt 0:03:00]} 27. Nxb6 {[%emt 0:00:41]} Rxb6 {[%emt 0:00:09]} 28. Rd1 {[%emt 0:01:23]} a5 {[%emt 0:03:47]} 29. Rd8+ {[%emt 0:00:30]} Kf7 {[%emt 0:00:13]} 30. Rd7+ {[%emt 0:00:57]} Kf8 {[%emt 0:01:08]} 31. b3 {[%emt 0:01:44]} a4 {[%emt 0:02:43]} 32. Ba3+ {[%emt 0:00:08]} Kg8 {[%emt 0:00:34]} 33. Rd8+ {[%emt 0:01:07]} Kf7 {[%emt 0:00:31]} 34. Rd7+ {[%emt 0:00:06]} Kg8 {[%emt 0:00:25]} 35. Rd6 {[%emt 0:03:25]} Rb8 {[%emt 0:01:37]} 36. bxa4 {[%emt 0:01:42]} Bf8 {[%emt 0:01:47]} 37. a5 {[%emt 0:05:59]} Bxd6 {[%emt 0:01:31]} 38. Bxd6 {[%emt 0:00:08]} Rb1+ {[%emt 0:01:58]} 39. Kh2 {[%emt 0:00:06]} Rb2 {[%emt 0:01:43]} 40. f3 {[%emt 0:01:23]} Rxa2 {[%emt 0:00:41]} 41. Bb4 {[%emt 0:30:06]} Kf7 {[%emt 0:31:16]} 42. h4 {[%emt 0:00:24]} h5 {[%emt 0:07:13]} 43. Kh3 {[%emt 0:00:18]} Kf6 {[%emt 0:00:48]} 44. g4 {[%emt 0:00:26]} hxg4+ {[%emt 0:06:23]} 45. Kxg4 {[%emt 0:00:11]} Ra1 {[%emt 0:02:42]} 46. Kg3 {[%emt 0:01:47]} Kf5 {[%emt 0:01:01]} 47. Kf2 {[%emt 0:01:25]} Rh1 {[%emt 0:00:00]} 48. Kg3 {[%emt 0:00:00]} g5 {[%emt 0:00:00]} 49. hxg5 {[%emt 0:00:00]} Kxg5 {[%emt 0:00:00]} 50. Bd6 {[%emt 0:00:00]} Kf5 {[%emt 0:00:00]} 51. Kf2 {[%emt 0:00:00]} Kf4 {[%emt 0:00:00]} 52. Ke2 {[%emt 0:00:00]} Rh6 {[%emt 0:00:00]} 53. Bc5 {[%emt 0:00:00]} Rh2+ {[%emt 0:00:00]} 54. Bf2 {[%emt 0:00:00]} e4 {[%emt 0:00:00]} 55. fxe4 {[%emt 0:00:00]} Kxe4 {[%emt 0:00:00]} 56. a6 {[%emt 0:00:00]} Rh6 {[%emt 0:00:00]} 57. a7 {[%emt 0:00:00]} Ra6 {[%emt 0:00:00]} 58. Bd4 {[%emt 0:00:00]} Ra2+ {[%emt 0:00:00]} 59. Kd1 {[%emt 0:00:00]} Kd3 {[%emt 0:00:31]} 60. Kc1 {[%emt 0:00:00]} Kc4 {[%emt 0:00:35]} 61. Kb1 {[%emt 0:00:00]} Ra4 {[%emt 0:01:11]} 1/2-1/2

[Event "DLM Youth 2024"]
[Site "Tuebingen"]
[Date "2024.10.03"]
[Round "2"]
[White "Wolf, Helena"]
[Black "Didas, Emma"]
[Result "1-0"]
[ECO "B07"]
[WhiteElo "1545"]
[BlackElo "1078"]
[Annotator "NA RC"]
[PlyCount "97"]
[EventDate "2024.10.03"]
[EventType "team-swiss"]
[EventRounds "7"]
[EventCountry "GER"]
[SourceTitle "playchess.com"]
[Source "ChessBase"]
[SourceQuality "1"]
[TimeControl "40/5400+30:1800+30"]

1. e4 {[%emt 0:00:03]} d6 {[%emt 0:00:06]} 2. d4 {[%emt 0:00:05]} Nf6 {[%emt 0:00:04]} 3. Nc3 {[%emt 0:00:06]} g6 {[%emt 0:00:03]} 4. Be3 {[%emt 0:00:05]} Bg7 {[%emt 0:00:09]} 5. Qd2 {[%emt 0:00:07]} Nc6 {[%emt 0:00:51]} 6. f3 {[%emt 0:01:23]} O-O {[%emt 0:00:41]} 7. O-O-O {[%emt 0:00:43]} e5 {[%emt 0:00:46]} 8. d5 {[%emt 0:00:43]} Ne7 {[%emt 0:00:22]} 9. Bh6 {[%emt 0:04:17]} Ne8 {[%emt 0:04:40]} 10. h4 {[%emt 0:01:53]} c6 {[%emt 0:00:46]} 11. dxc6 {[%emt 0:00:57]} bxc6 {[%emt 0:00:13]} 12. h5 {[%emt 0:01:39]} d5 {[%emt 0:00:56]} 13. hxg6 {[%emt 0:02:18]} fxg6 {[%emt 0:01:55]} 14. Bxg7 {[%emt 0:00:53]} Nxg7 {[%emt 0:00:35]} 15. Qh6 {[%emt 0:00:27]} Bb7 {[%emt 0:05:54]} 16. Nh3 {[%emt 0:11:19]} Ne6 {[%emt 0:04:56]} 17. Nf2 {[%emt 0:20:26]} Rf7 {[%emt 0:01:32]} 18. Ng4 {[%emt 0:01:11]} Qc7 {[%emt 0:02:49]} 19. Qh2 {[%emt 0:04:33]} Kf8 {[%emt 0:07:34]} 20. Nxe5 {[%emt 0:04:14]} Rg7 {[%emt 0:00:31]} 21. Ng4 {[%emt 0:05:16]} Qxh2 {[%emt 0:01:20]} 22. Rxh2 {[%emt 0:00:07]} Rf7 {[%emt 0:01:48]} 23. Ne5 {[%emt 0:03:39]} Rg7 {[%emt 0:00:38]} 24. Nd7+ {[%emt 0:01:12]} Kf7 {[%emt 0:00:38]} 25. Na4 {[%emt 0:00:37]} Rd8 {[%emt 0:01:23]} 26. Nac5 {[%emt 0:00:52]} Nxc5 {[%emt 0:01:30]} 27. Nxc5 {[%emt 0:00:31]} Bc8 {[%emt 0:01:08]} 28. Rd4 {[%emt 0:04:34]} Be6 {[%emt 0:01:59]} 29. exd5 {[%emt 0:02:40]} Rxd5 {[%emt 0:01:14]} 30. Nxe6 {[%emt 0:00:56]} Kxe6 {[%emt 0:00:36]} 31. Bc4 {[%emt 0:00:06]} Nf5 {[%emt 0:01:39]} 32. Bxd5+ {[%emt 0:02:45]} cxd5 {[%emt 0:00:11]} 33. Rd1 {[%emt 0:00:17]} Rd7 {[%emt 0:00:38]} 34. Re1+ {[%emt 0:01:21]} Kf6 {[%emt 0:00:10]} 35. c3 {[%emt 0:02:46]} Rc7 {[%emt 0:00:47]} 36. g4 {[%emt 0:00:37]} Nd4 {[%emt 0:00:31]} 37. Kd1 {[%emt 0:01:25]} Nc6 {[%emt 0:00:48]} 38. Rd2 {[%emt 0:01:03]} Rd7 {[%emt 0:00:17]} 39. Rh1 {[%emt 0:02:00]} Ke5 {[%emt 0:01:04]} 40. Rf2 {[%emt 0:01:31]} d4 {[%emt 0:00:45]} 41. f4+ {[%emt 0:30:49]} Kf6 {[%emt 0:30:22]} 42. Rd2 {[%emt 0:01:52]} g5 {[%emt 0:01:07]} 43. Rh6+ {[%emt 0:03:15]} Kg7 {[%emt 0:01:13]} 44. Rxc6 {[%emt 0:00:08]} gxf4 {[%emt 0:00:19]} 45. Rxd4 {[%emt 0:01:19]} Rxd4+ {[%emt 0:00:21]} 46. cxd4 {[%emt 0:00:13]} Kf7 {[%emt 0:00:45]} 47. Ke2 {[%emt 0:00:35]} Kg7 {[%emt 0:00:16]} 48. Kf3 {[%emt 0:00:05]} Kf7 {[%emt 0:00:07]} 49. Kxf4 {[%emt 0:00:03]} 1-0

[Event "DLM Youth 2024"]
[Site "Tuebingen"]
[Date "2024.10.04"]
[Round "3"]
[White "Pubantz, Jan"]
[Black "Liebold, Aaron"]
[Result "1/2-1/2"]
[ECO "E11"]
[WhiteElo "2318"]
[BlackElo "2058"]
[Annotator "RC"]
[PlyCount "43"]
[EventDate "2024.10.03"]
[EventType "team-swiss"]
[EventRounds "7"]
[EventCountry "GER"]
[SourceTitle "playchess.com"]
[Source "ChessBase"]
[SourceQuality "1"]
[TimeControl "40/5400+30:1800+30"]

1. d4 {[%emt 0:00:01]} Nf6 {[%emt 0:00:06]} 2. c4 {[%emt 0:00:06]} e6 {[%emt 0:00:03]} 3. g3 {[%emt 0:00:02]} d5 {[%emt 0:00:05]} 4. Nf3 {[%emt 0:00:03]} Bb4+ {[%emt 0:00:06]} 5. Bd2 {[%emt 0:00:04]} Be7 {[%emt 0:00:04]} 6. Bg2 {[%emt 0:00:04]} O-O {[%emt 0:00:07]} 7. O-O {[%emt 0:00:14]} h6 {[%emt 0:00:26]} 8. Qc2 {[%emt 0:00:39]} c6 {[%emt 0:00:06]} 9. Bf4 {[%emt 0:04:10]} Nbd7 {[%emt 0:01:30]} 10. Rd1 {[%emt 0:02:58]} a5 {[%emt 0:01:19]} 11. b3 {[%emt 0:17:17]} b6 {[%emt 0:01:19]} 12. Nc3 {[%emt 0:07:48]} Ba6 {[%emt 0:01:04]} 13. e4 {[%emt 0:16:12]} dxc4 {[%emt 0:09:38]} 14. bxc4 {[%emt 0:00:54]} Bxc4 {[%emt 0:11:19]} 15. Ne5 {[%emt 0:14:49]} Nxe5 {[%emt 0:11:38]} 16. dxe5 {[%emt 0:00:00]} Nd7 {[%emt 0:00:07]} 17. Na4 {[%emt 0:00:00]} Bb5 {[%emt 0:04:52]} 18. Nxb6 {[%emt 0:00:00]} Qxb6 {[%emt 0:02:09]} 19. Rxd7 {[%emt 0:00:00]} Bc5 {[%emt 0:21:35]} 20. a4 {[%emt 0:00:00]} Ba6 {[%emt 0:00:22]} 21. Bf3 {[%emt 0:06:55]} Rfd8 {[%emt 0:02:17]} 22. Rxd8+ {[%emt 0:22:20]} 1/2-1/2

[Event "DLM Youth 2024"]
[Site "Tuebingen"]
[Date "2024.10.04"]
[Round "3"]
[White "Haack, Kevin"]
[Black "Ermitsch, Magnus"]
[Result "1/2-1/2"]
[ECO "E69"]
[WhiteElo "2305"]
[BlackElo "2396"]
[Annotator "RC"]
[PlyCount "102"]
[EventDate "2024.10.03"]
[EventType "team-swiss"]
[EventRounds "7"]
[EventCountry "GER"]
[SourceTitle "playchess.com"]
[Source "ChessBase"]
[SourceQuality "1"]
[TimeControl "40/5400+30:1800+30"]

1. d4 {[%emt 0:00:04]} Nf6 {[%emt 0:00:52]} 2. c4 {[%emt 0:00:09]} g6 {[%emt 0:00:06]} 3. g3 {[%emt 0:00:06]} Bg7 {[%emt 0:00:06]} 4. Bg2 {[%emt 0:00:04]} O-O {[%emt 0:00:18]} 5. Nc3 {[%emt 0:00:05]} d6 {[%emt 0:00:15]} 6. Nf3 {[%emt 0:00:06]} Nbd7 {[%emt 0:00:11]} 7. O-O {[%emt 0:00:21]} e5 {[%emt 0:01:05]} 8. e4 {[%emt 0:00:06]} Re8 {[%emt 0:00:27]} 9. Re1 {[%emt 0:02:16]} c6 {[%emt 0:01:02]} 10. h3 {[%emt 0:00:22]} Qc7 {[%emt 0:01:19]} 11. Be3 {[%emt 0:06:28]} b6 {[%emt 0:04:22]} 12. d5 {[%emt 0:03:27]} c5 {[%emt 0:01:59]} 13. a4 {[%emt 0:10:16]} a5 {[%emt 0:03:00]} 14. Qd2 {[%emt 0:06:03]} Kh8 {[%emt 0:02:33]} 15. Bh6 {[%emt 0:03:14]} Qd8 {[%emt 0:04:22]} 16. Rf1 {[%emt 0:03:14]} Nh5 {[%emt 0:07:37]} 17. Bxg7+ {[%emt 0:03:23]} Kxg7 {[%emt 0:01:32]} 18. Rae1 {[%emt 0:05:03]} Ndf6 {[%emt 0:14:42]} 19. b3 {[%emt 0:05:47]} Ng8 {[%emt 0:05:29]} 20. Ne2 {[%emt 0:03:30]} f5 {[%emt 0:02:00]} 21. Ng5 {[%emt 0:11:31]} Ra7 {[%emt 0:09:32]} 22. exf5 {[%emt 0:05:01]} gxf5 {[%emt 0:00:12]} 23. f4 {[%emt 0:01:53]} Rae7 {[%emt 0:08:41]} 24. Qc3 {[%emt 0:10:24]} Ngf6 {[%emt 0:06:33]} 25. fxe5 {[%emt 0:02:32]} Rxe5 {[%emt 0:01:57]} 26. Nf4 {[%emt 0:01:15]} Nxf4 {[%emt 0:03:24]} 27. gxf4 {[%emt 0:00:07]} Rxe1 {[%emt 0:05:34]} 28. Rxe1 {[%emt 0:00:01]} Rxe1+ {[%emt 0:00:48]} 29. Qxe1 {[%emt 0:00:02]} Qe8 {[%emt 0:00:52]} 30. Qxe8 {[%emt 0:06:30]} Nxe8 {[%emt 0:00:02]} 31. Kf2 {[%emt 0:00:10]} h6 {[%emt 0:04:14]} 32. Nf3 {[%emt 0:00:16]} Bd7 {[%emt 0:00:24]} 33. Nh4 {[%emt 0:04:37]} Nc7 {[%emt 0:02:19]} 34. Bf1 {[%emt 0:01:23]} Kf6 {[%emt 0:01:00]} 35. Bd3 {[%emt 0:00:37]} Ne8 {[%emt 0:00:25]} 36. Bc2 {[%emt 0:00:53]} Ng7 {[%emt 0:00:11]} 37. Ke3 {[%emt 0:00:31]} Be8 {[%emt 0:00:18]} 38. Kf2 {[%emt 0:01:06]} Bf7 {[%emt 0:00:32]} 39. Ke3 {[%emt 0:01:11]} Bh5 {[%emt 0:01:25]} 40. Kd2 {[%emt 0:01:24]} Bg6 {[%emt 0:00:09]} 41. Ke3 {[%emt 0:30:25]} Bh7 {[%emt 0:30:07]} 42. Kf3 {[%emt 0:01:37]} Ne8 {[%emt 0:00:04]} 43. Ke3 {[%emt 0:01:28]} Nc7 {[%emt 0:00:07]} 44. Bb1 {[%emt 0:00:40]} Na6 {[%emt 0:00:05]} 45. Kd2 {[%emt 0:00:00]} Nb8 {[%emt 0:00:00]} 46. Bd3 {[%emt 0:00:00]} Nd7 {[%emt 0:00:00]} 47. Ke3 {[%emt 0:00:00]} Nf8 {[%emt 0:00:00]} 48. Bc2 {[%emt 0:00:00]} Bg6 {[%emt 0:00:00]} 49. Kd2 {[%emt 0:00:00]} Nh7 {[%emt 0:00:00]} 50. Ke3 {[%emt 0:00:00]} Nf8 {[%emt 0:00:00]} 51. Kd2 {[%emt 0:00:00]} Nd7 {[%emt 0:00:00]} 1/2-1/2

[Event "DLM Youth 2024"]
[Site "Tuebingen"]
[Date "2024.10.04"]
[Round "3"]
[White "Gallasch, Jonas"]
[Black "Wunderlich, Elias"]
[Result "1-0"]
[ECO "A46"]
[WhiteElo "2291"]
[BlackElo "2073"]
[Annotator "RC"]
[PlyCount "63"]
[EventDate "2024.10.03"]
[EventType "team-swiss"]
[EventRounds "7"]
[EventCountry "GER"]
[SourceTitle "playchess.com"]
[Source "ChessBase"]
[SourceQuality "1"]
[TimeControl "40/5400+30:1800+30"]

1. Nf3 {[%emt 0:00:04]} e6 {[%emt 0:00:05]} 2. g3 {[%emt 0:00:05]} Nf6 {[%emt 0:00:12]} 3. Bg2 {[%emt 0:00:09]} d5 {[%emt 0:00:07]} 4. O-O {[%emt 0:00:08]} Be7 {[%emt 0:00:20]} 5. d4 {[%emt 0:00:06]} b5 {[%emt 0:00:04]} 6. a4 {[%emt 0:00:04]} b4 {[%emt 0:00:06]} 7. c4 {[%emt 0:00:05]} Bb7 {[%emt 0:00:59]} 8. Nbd2 {[%emt 0:02:41]} c5 {[%emt 0:01:04]} 9. dxc5 {[%emt 0:20:16]} Bxc5 {[%emt 0:00:23]} 10. Nb3 {[%emt 0:00:05]} Be7 {[%emt 0:05:00]} 11. cxd5 {[%emt 0:02:57]} Nxd5 {[%emt 0:07:26]} 12. e4 {[%emt 0:03:10]} Nf6 {[%emt 0:00:24]} 13. Qxd8+ {[%emt 0:04:41]} Kxd8 {[%emt 0:00:09]} 14. e5 {[%emt 0:11:13]} Nfd7 {[%emt 0:02:40]} 15. Rd1 {[%emt 0:03:33]} a5 {[%emt 0:04:43]} 16. Be3 {[%emt 0:04:18]} Ke8 {[%emt 0:01:40]} 17. Rac1 {[%emt 0:02:56]} Bd5 {[%emt 0:37:22]} 18. Nfd4 {[%emt 0:17:03]} Nb6 {[%emt 0:15:39]} 19. Nb5 {[%emt 0:06:12]} Bxb3 {[%emt 0:08:37]} 20. Bxb6 {[%emt 0:00:17]} Bxd1 {[%emt 0:03:40]} 21. Rc8+ {[%emt 0:08:06]} Kd7 {[%emt 0:00:02]} 22. Rxh8 {[%emt 0:00:06]} Ra6 {[%emt 0:00:54]} 23. Rxb8 {[%emt 0:00:09]} Bxa4 {[%emt 0:00:23]} 24. Bf1 {[%emt 0:00:29]} f6 {[%emt 0:05:02]} 25. Nd6 {[%emt 0:01:48]} fxe5 {[%emt 0:01:47]} 26. Bxa6 {[%emt 0:00:37]} Bxd6 {[%emt 0:00:15]} 27. Rd8+ {[%emt 0:00:39]} Kc6 {[%emt 0:00:53]} 28. Bxa5 {[%emt 0:00:03]} e4 {[%emt 0:00:46]} 29. Rc8+ {[%emt 0:01:23]} Kd5 {[%emt 0:00:07]} 30. Bc4+ {[%emt 0:00:30]} Kd4 {[%emt 0:00:09]} 31. Bb6+ {[%emt 0:00:08]} Ke5 {[%emt 0:00:10]} 32. Bc7 {[%emt 0:00:18]} 1-0